fUST/lending_fUST_20241220
["ID","MTS","AMOUNT","RATE_DAILY","PERIOD"]
[346082786,1734694370030,-14735.10186484,0.00025,30]
[346082787,1734694370066,-146369.42698707,0.00025,30]
[346082790,1734694536823,20711.857873,0.00025,120]
[346082796,1734694795930,3000.0,0.00024657,30]
[346082797,1734694796196,3000.0,0.00024657,30]
[346082798,1734694796461,3000.0,0.00024657,30]
[346082799,1734694796714,3000.0,0.00024657,30]
[346082800,1734694797156,3000.0,0.00024657,30]
[346082801,1734694797565,3000.0,0.00024657,30]
[346082802,1734694797812,3000.0,0.00024657,30]
[346082803,1734694798059,3000.0,0.00024657,30]
[346082804,1734694798327,3000.0,0.00024657,30]
[346082805,1734694798712,367.41536752,0.00024657,30]
[346082807,1734694937202,179.108738,0.00013973,2]
[346082810,1734695113747,802.25,0.00025,30]
[346082811,1734695114078,735.42095,0.00025,30]
[346082812,1734695114381,673.004,0.00025,30]
[346082813,1734695114849,618.0,0.00025,120]
[346082814,1734695115115,566.284233,0.00025,30]
[346082815,1734695115414,519.73,0.00025,30]
[346082816,1734695115849,475.88,0.00025,30]
[346082817,1734695116212,436.18989,0.00025,30]
[346082818,1734695116623,1199.4,0.00025,30]
[346082819,1734695116915,899.05,0.00025,30]
[346082820,1734695117429,675.0,0.00025,30]
[346082821,1734695117829,505.972651,0.00025,30]
[346082822,1734695118147,379.783,0.00025,30]
[346082823,1734695118641,285.0,0.00025,30]
[346082824,1734695119343,852.5,0.00025,30]
[346082825,1734695181398,-2346.49,0.000252,31]
[346082826,1734695181439,-2346.49,0.000252,31]
[346082827,1734695181479,-2346.49,0.000252,31]
[346082828,1734695181520,-2346.49,0.000252,31]
[346082829,1734695181558,-2346.49,0.000252,31]
[346082830,1734695181597,-2346.49,0.000252,31]
[346082831,1734695181639,-2346.49,0.000252,31]
[346082832,1734695181679,-2346.49,0.000252,31]
[346082833,1734695181860,-2346.49,0.000252,31]
[346082834,1734695181905,-2346.49,0.000252,31]
[346082835,1734695181946,-2346.49,0.000252,31]
[346082836,1734695181988,-2346.49,0.000252,31]
[346082837,1734695182028,-2346.49,0.000252,31]
[346082838,1734695182068,-2346.49,0.000252,31]
[346082839,1734695182112,-2346.49,0.000252,31]
[346082840,1734695182154,-2346.49,0.000252,31]
[346082841,1734695182208,-160.0,0.00025253,120]
[346082842,1734695182248,-10000.0,0.000254,120]
[346082843,1734695182296,-184797.33991768,0.000255,30]
[346082844,1734695182332,-349.93547474,0.000255,120]
[346082845,1734695182369,-245987.22971274,0.000255,30]
[346082846,1734695182410,-2346.49,0.000255,31]
[346082847,1734695182450,-2346.49,0.000255,31]
[346082848,1734695182489,-2346.49,0.000255,31]
[346082849,1734695182527,-2346.49,0.000255,31]
[346082850,1734695182566,-2346.49,0.000255,31]
[346082851,1734695182604,-2346.49,0.000255,31]
[346082852,1734695182643,-2346.49,0.000255,31]
[346082853,1734695182686,-2346.49,0.000255,31]
[346082854,1734695182728,-2346.49,0.000255,31]
[346082855,1734695182776,-43.24489484,0.000255,31]
[346082882,1734695244114,-313.05780677,0.00020041,2]
[346082889,1734695355117,-1175.55206382,0.00019841,2]
[346082890,1734695355139,-1064.58825567,0.00019941,2]
[346082891,1734695355172,-1033.94784037,0.00019941,2]
[346082893,1734695363566,2340.01575963,0.00019841,2]
[346082894,1734695363590,184.92777567,0.00019841,2]
[346082895,1734695365163,-2161.99865793,0.00019841,2]
[346083002,1734695433042,-179.108738,0.00020447,2]
[346083004,1734695433053,-753.231262,0.00020896,2]
[346083006,1734695433065,-617.8093302,0.00020896,2]
[346083007,1734695433075,-164.724973,0.00020916,2]
[346083008,1734695433085,-329.36031179,0.00021817,2]
[346083009,1734695433095,-300.0,0.00021915,2]
[346083010,1734695433105,-300.0,0.00021915,2]
[346083011,1734695433116,-500.0,0.00021916,2]
[346083012,1734695433126,-500.0,0.00021916,2]
[346083013,1734695433136,-500.0,0.00021916,2]
[346083014,1734695433147,-446.61577016,0.00021916,2]
[346083015,1734695433158,-500.0,0.00021916,2]
[346083016,1734695433169,-197.15638533,0.00021916,2]
[346083017,1734695433181,-500.0,0.00021916,2]
[346083019,1734695433193,-500.0,0.00021916,2]
[346083021,1734695433203,-192.62354491,0.00021916,2]
[346083023,1734695433218,-500.0,0.00021916,2]
[346083025,1734695433231,-500.0,0.00021916,2]
[346083028,1734695433241,-500.0,0.00021916,2]
[346083030,1734695433251,-500.0,0.00021916,2]
[346083032,1734695433264,-525.44752519,0.00021916,2]
[346083034,1734695433275,-500.0,0.00021916,2]
[346083036,1734695433285,-392.24278947,0.00021916,2]
[346083038,1734695433295,-269.64242297,0.00021916,2]
[346083040,1734695433305,-192.01074982,0.00021916,2]
[346083042,1734695433315,-454.91315915,0.00021916,2]
[346083044,1734695433325,-457.49190795,0.00021916,2]
[346083046,1734695433335,-500.0,0.00021916,2]
[346083048,1734695433345,-327.41493346,0.00021916,2]
[346083050,1734695433354,-500.0,0.00021916,2]
[346083051,1734695433365,-500.0,0.00021916,2]
[346083053,1734695433375,-500.0,0.00021916,2]
[346083055,1734695433385,-556.70807672,0.00021916,2]
[346083058,1734695433395,-411.74271716,0.00021916,2]
[346083060,1734695433405,-467.41535519,0.00021916,2]
[346083062,1734695433414,-500.0,0.00021916,2]
[346083063,1734695433423,-258.13724317,0.00021916,2]
[346083065,1734695433433,-272.9872589,0.00021916,2]
[346083067,1734695433443,-500.0,0.00021917,6]
[346083069,1734695433454,-500.0,0.00021917,6]
[346083071,1734695433470,-500.0,0.00021917,6]
[346083073,1734695433483,-500.0,0.00021917,6]
[346083076,1734695433496,-500.0,0.00021917,6]
[346083078,1734695433506,-500.0,0.00021917,6]
[346083080,1734695433516,-500.0,0.00021917,6]
[346083081,1734695433526,-500.0,0.00021917,6]
[346083084,1734695433536,-500.0,0.00021917,6]
[346083086,1734695433546,-500.0,0.00021917,6]
[346083088,1734695433556,-500.0,0.00021917,6]
[346083090,1734695433566,-500.0,0.00021917,6]
[346083092,1734695433576,-500.0,0.00021917,6]
[346083094,1734695433585,-500.0,0.00021917,6]
[346083096,1734695433595,-500.0,0.00021917,6]
[346083098,1734695433606,-500.0,0.00021917,6]
[346083100,1734695433616,-500.0,0.00021917,6]
[346083102,1734695433627,-500.0,0.00021917,6]
[346083104,1734695433637,-500.0,0.00021917,6]
[346083106,1734695433648,-500.0,0.00021917,6]
[346083108,1734695433658,-500.0,0.00021917,6]
[346083110,1734695433668,-325.60271751,0.00021917,6]
[346083112,1734695433678,-500.0,0.00021917,6]
[346083114,1734695433688,-194.63904662,0.00021917,6]
[346083116,1734695433702,-305.36095338,0.00021917,6]
[346083118,1734695433714,-500.0,0.00021917,6]
[346083120,1734695433725,-500.0,0.00021917,6]
[346083122,1734695433738,-1248.94,0.00021917,7]
[346083124,1734695433747,-500.0,0.00021917,6]
[346083126,1734695433758,-500.0,0.00021917,6]
[346083128,1734695433768,-500.0,0.00021917,6]
[346083130,1734695433778,-500.0,0.00021917,6]
[346083132,1734695433788,-500.0,0.00021917,6]
[346083134,1734695433798,-59.59714027,0.00021917,6]
[346083136,1734695433811,-440.40285973,0.00021917,6]
[346083138,1734695433821,-500.0,0.00021917,6]
[346083141,1734695433831,-500.0,0.00021917,6]
[346083143,1734695433841,-500.0,0.00021917,6]
[346083144,1734695433852,-500.0,0.00021917,6]
[346083147,1734695433862,-500.0,0.00021917,6]
[346083148,1734695433872,-505.64,0.00021917,6]
[346083150,1734695433882,-500.0,0.00021917,6]
[346083153,1734695433892,-500.0,0.00021917,6]
[346083154,1734695433901,-500.0,0.00021917,6]
[346083156,1734695433910,-500.0,0.00021917,6]
[346083158,1734695433920,-500.0,0.00021917,6]
[346083160,1734695433930,-500.0,0.00021917,6]
[346083162,1734695433940,-792.84,0.00021917,6]
[346083164,1734695433950,-500.0,0.00021917,6]
[346083167,1734695433963,-500.0,0.00021917,6]
[346083169,1734695433975,-500.0,0.00021917,6]
[346083171,1734695433986,-666.3,0.00021917,6]
[346083172,1734695433996,-500.0,0.00021917,6]
[346083175,1734695434007,-500.0,0.00021917,6]
[346083176,1734695434017,-500.0,0.00021917,6]
[346083178,1734695434027,-500.0,0.00021917,6]
[346083181,1734695434038,-500.0,0.00021917,6]
[346083182,1734695434047,-500.0,0.00021917,6]
[346083185,1734695434057,-500.0,0.00021917,6]
[346083186,1734695434068,-500.0,0.00021917,6]
[346083188,1734695434078,-500.0,0.00021917,6]
[346083191,1734695434088,-500.0,0.00021917,6]
[346083193,1734695434099,-500.0,0.00021917,6]
[346083195,1734695434109,-546.14,0.00021917,6]
[346083197,1734695434119,-500.0,0.00021917,6]
[346083199,1734695434129,-500.0,0.00021917,6]
[346083201,1734695434139,-528.75329143,0.00021917,6]
[346083203,1734695434149,-1569.66,0.00021917,6]
[346083205,1734695434160,-500.0,0.00021917,6]
[346083207,1734695434171,-500.0,0.00021917,6]
[346083209,1734695434182,-500.0,0.00021917,6]
[346083211,1734695434192,-500.0,0.00021917,6]
[346083213,1734695434201,-500.0,0.00021917,6]
[346083215,1734695434217,-500.0,0.00021917,6]
[346083216,1734695434227,-1153.1,0.00021917,6]
[346083218,1734695434236,-500.0,0.00021917,6]
[346083220,1734695434246,-500.0,0.00021917,6]
[346083222,1734695434257,-500.0,0.00021917,6]
[346083224,1734695434267,-500.0,0.00021917,6]
[346083226,1734695434277,-825.59,0.00021917,6]
[346083228,1734695434288,-168.0,0.00021917,6]
[346083230,1734695434298,-500.0,0.00021917,6]
[346083232,1734695434308,-909.44,0.00021917,6]
[346083234,1734695434318,-661.6,0.00021917,6]
[346083236,1734695434328,-500.0,0.00021917,6]
[346083239,1734695434339,-500.0,0.00021917,6]
[346083240,1734695434349,-500.0,0.00021917,6]
[346083243,1734695434359,-500.0,0.00021917,6]
[346083245,1734695434373,-500.0,0.00021917,6]
[346083247,1734695434384,-630.43625434,0.00021917,6]
[346083249,1734695434394,-500.0,0.00021917,6]
[346083251,1734695434404,-1058.73,0.00021917,6]
[346083253,1734695434415,-500.0,0.00021917,6]
[346083255,1734695434426,-500.0,0.00021917,6]
[346083257,1734695434436,-742.68,0.00021917,6]
[346083259,1734695434446,-500.0,0.00021917,6]
[346083261,1734695434456,-598.99,0.00021917,6]
[346083263,1734695434473,-500.0,0.00021917,6]
[346083265,1734695434483,-500.0,0.00021917,6]
[346083267,1734695434493,-500.0,0.00021917,6]
[346083269,1734695434503,-500.0,0.00021917,6]
[346083271,1734695434513,-711.99,0.00021917,6]
[346083273,1734695434522,-500.0,0.00021917,6]
[346083275,1734695434532,-500.0,0.00021917,6]
[346083277,1734695434542,-500.0,0.00021917,6]
[346083279,1734695434552,-500.0,0.00021917,6]
[346083281,1734695434561,-500.0,0.00021917,6]
[346083283,1734695434571,-1097.79,0.00021917,6]
[346083285,1734695434581,-500.0,0.00021917,6]
[346083288,1734695434591,-674.85,0.00021917,6]
[346083290,1734695434600,-739.83,0.00021917,6]
[346083292,1734695434610,-500.0,0.00021917,6]
[346083294,1734695434620,-500.0,0.00021917,6]
[346083296,1734695434629,-500.0,0.00021917,6]
[346083298,1734695434639,-1008.24,0.00021917,6]
[346083300,1734695434649,-500.0,0.00021917,6]
[346083302,1734695434658,-500.0,0.00021917,6]
[346083304,1734695434668,-522.79355695,0.00021917,6]
[346083305,1734695434678,-500.0,0.00021917,6]
[346083308,1734695434688,-500.0,0.00021917,6]
[346083310,1734695434698,-907.98,0.00021917,6]
[346083312,1734695434707,-500.0,0.00021917,6]
[346083314,1734695434722,-500.0,0.00021917,6]
[346083316,1734695434731,-500.0,0.00021917,6]
[346083318,1734695434741,-500.0,0.00021917,6]
[346083320,1734695434751,-500.0,0.00021917,6]
[346083322,1734695434760,-1582.09,0.00021917,6]
[346083324,1734695434769,-954.11,0.00021917,6]
[346083326,1734695434779,-500.0,0.00021917,6]
[346083327,1734695434788,-1591.5,0.00021917,6]
[346083328,1734695434797,-625.41,0.00021917,6]
[346083329,1734695434807,-500.0,0.00021917,6]
[346083330,1734695434816,-974.47,0.00021917,6]
[346083331,1734695434826,-891.65,0.00021917,6]
[346083332,1734695434835,-500.0,0.00021917,6]
[346083333,1734695434845,-940.38,0.00021917,6]
[346083334,1734695434854,-500.0,0.00021917,6]
[346083335,1734695434863,-619.12505752,0.00021917,6]
[346083336,1734695434873,-500.0,0.00021917,6]
[346083337,1734695434883,-500.0,0.00021917,6]
[346083339,1734695434894,-500.0,0.00021917,6]
[346083341,1734695434904,-536.63,0.00021917,6]
[346083343,1734695434913,-500.0,0.00021917,6]
[346083345,1734695434923,-500.0,0.00021917,6]
[346083347,1734695434933,-1059.47,0.00021917,6]
[346083349,1734695434943,-500.0,0.00021917,6]
[346083351,1734695434952,-500.0,0.00021917,6]
[346083353,1734695434963,-1737.43,0.00021917,6]
[346083355,1734695434973,-500.0,0.00021917,6]
[346083357,1734695434983,-500.0,0.00021917,6]
[346083359,1734695434993,-8856.88,0.00021917,6]
[346083361,1734695435004,-1259.63,0.00021917,6]
[346083362,1734695435013,-604.9,0.00021917,6]
[346083364,1734695435023,-2537.97,0.00021917,6]
[346083365,1734695435033,-500.0,0.00021917,6]
[346083366,1734695435043,-500.0,0.00021917,6]
[346083367,1734695435053,-500.0,0.00021917,6]
[346083368,1734695435062,-500.0,0.00021917,6]
[346083369,1734695435072,-500.0,0.00021917,6]
[346083370,1734695435081,-500.0,0.00021917,6]
[346083371,1734695435091,-350.0,0.00021917,2]
[346083372,1734695435101,-26119.07,0.00021917,6]
[346083373,1734695435110,-12484.53,0.00021917,6]
[346083374,1734695435119,-6479.93,0.00021917,6]
[346083375,1734695435129,-500.0,0.00021917,6]
[346083376,1734695435365,-500.0,0.00021917,6]
[346083377,1734695435375,-500.0,0.00021917,6]
[346083378,1734695435385,-872.14,0.00021917,6]
[346083379,1734695435395,-500.0,0.00021917,6]
[346083380,1734695435405,-500.0,0.00021917,6]
[346083381,1734695435415,-500.0,0.00021917,6]
[346083382,1734695435425,-500.0,0.00021917,6]
[346083383,1734695435435,-500.0,0.00021917,6]
[346083384,1734695435444,-1760.75,0.00021917,6]
[346083385,1734695435453,-500.0,0.00021917,6]
[346083386,1734695435466,-500.0,0.00021917,6]
[346083387,1734695435476,-6293.53,0.00021917,6]
[346083388,1734695435486,-500.0,0.00021917,6]
[346083389,1734695435496,-1957.09,0.00021917,6]
[346083390,1734695435506,-500.0,0.00021917,6]
[346083391,1734695435516,-500.0,0.00021917,6]
[346083392,1734695435525,-500.0,0.00021917,6]
[346083393,1734695435535,-3441.37,0.00021917,6]
[346083394,1734695435545,-1705.94,0.00021917,6]
[346083395,1734695435554,-500.0,0.00021917,6]
[346083396,1734695435563,-500.0,0.00021917,6]
[346083397,1734695435573,-1606.97,0.00021917,6]
[346083398,1734695435583,-500.0,0.00021917,6]
[346083399,1734695435593,-500.0,0.00021917,6]
[346083400,1734695435603,-500.0,0.00021917,6]
[346083401,1734695435613,-500.0,0.00021917,6]
[346083402,1734695435622,-500.0,0.00021917,6]
[346083403,1734695435632,-500.0,0.00021917,6]
[346083404,1734695435642,-710.49,0.00021917,6]
[346083405,1734695435651,-500.0,0.00021917,6]
[346083406,1734695435660,-500.0,0.00021917,6]
[346083407,1734695435670,-500.0,0.00021917,6]
[346083408,1734695435679,-500.0,0.00021917,6]
[346083409,1734695435689,-159.56356869,0.00021917,6]
[346083410,1734695435699,-1045.23,0.00021917,6]
[346083411,1734695435708,-659.67,0.00021917,6]
[346083412,1734695435722,-10652.65,0.00021917,6]
[346083413,1734695435732,-500.0,0.00021917,6]
[346083414,1734695435742,-500.0,0.00021917,6]
[346083415,1734695435752,-500.0,0.00021917,6]
[346083416,1734695435762,-500.0,0.00021917,6]
[346083417,1734695435772,-500.0,0.00021917,6]
[346083418,1734695435782,-500.0,0.00021917,6]
[346083419,1734695435792,-2443.76,0.00021917,2]
[346083420,1734695435802,-564.57,0.00021917,6]
[346083421,1734695435811,-500.0,0.00021917,6]
[346083422,1734695435821,-500.0,0.00021917,6]
[346083423,1734695435830,-1659.22,0.00021917,6]
[346083424,1734695435839,-500.0,0.00021917,6]
[346083425,1734695435849,-500.0,0.00021917,6]
[346083426,1734695435860,-2623.57,0.00021917,6]
[346083427,1734695435870,-3774.55,0.00021917,6]
[346083428,1734695435880,-2715.88,0.00021917,2]
[346083429,1734695435891,-500.0,0.00021917,6]
[346083430,1734695435900,-500.0,0.00021917,6]
[346083431,1734695435911,-2144.16,0.00021917,6]
[346083432,1734695435921,-500.0,0.00021917,6]
[346083433,1734695435931,-500.0,0.00021917,6]
[346083434,1734695435941,-735.95,0.00021917,6]
[346083435,1734695435951,-500.0,0.00021917,6]
[346083436,1734695435964,-635.66,0.00021917,6]
[346083437,1734695435977,-1503.77,0.00021917,6]
[346083438,1734695435988,-500.0,0.00021917,6]
[346083439,1734695435997,-1406.33,0.00021917,6]
[346083440,1734695436007,-500.0,0.00021917,6]
[346083441,1734695436016,-1377.63,0.00021917,6]
[346083442,1734695436025,-1700.87,0.00021917,6]
[346083443,1734695436035,-648.56,0.00021917,6]
[346083444,1734695436045,-594.82,0.00021917,6]
[346083445,1734695436054,-679.09,0.00021917,6]
[346083446,1734695436064,-500.0,0.00021917,6]
[346083447,1734695436073,-1820.66,0.00021917,6]
[346083448,1734695436083,-500.0,0.00021917,6]
[346083449,1734695436093,-500.0,0.00021917,6]
[346083450,1734695436102,-656.63,0.00021917,6]
[346083451,1734695436112,-500.0,0.00021917,6]
[346083452,1734695436122,-510.72,0.00021917,6]
[346083453,1734695436131,-400.51617249,0.00021917,6]
[346083454,1734695436147,-99.48382751,0.00021917,6]
[346083455,1734695436156,-983.9,0.00021917,6]
[346083456,1734695436165,-1508.09773107,0.00021917,6]
[346083484,1734695438642,-1889.23226893,0.00021917,6]
[346083485,1734695438652,-557.8,0.00021917,6]
[346083486,1734695438661,-500.0,0.00021917,6]
[346083487,1734695438671,-500.0,0.00021917,6]
[346083488,1734695438680,-500.0,0.00021917,6]
[346083489,1734695438690,-500.0,0.00021917,6]
[346083490,1734695438699,-688.72,0.00021917,6]
[346083491,1734695438708,-500.0,0.00021917,6]
[346083492,1734695438723,-500.0,0.00021917,6]
[346083493,1734695438734,-870.15,0.00021917,6]
[346083494,1734695438744,-1442.13,0.00022,2]
[346083495,1734695438753,-570.0,0.00022,9]
[346083496,1734695438763,-666.0,0.00022091,2]
[346083497,1734695438773,-23580.25045537,0.00022091,3]
[346083498,1734695438785,-8763.87682533,0.00022091,3]
[346083499,1734695438795,-500.0,0.00022173,2]
[346083500,1734695438804,-510.86564652,0.00022173,2]
[346083501,1734695438815,-500.0,0.00022173,2]
[346083502,1734695438825,-500.0,0.00022173,2]
[346083503,1734695438835,-442.1460456,0.00022173,2]
[346083504,1734695438844,-511.02711415,0.00022173,2]
[346083505,1734695438854,-500.0,0.00022173,2]
[346083506,1734695438863,-645.1877597,0.00022191,6]
[346083507,1734695438873,-500.0,0.00022191,6]
[346083508,1734695438882,-500.0,0.00022191,6]
[346083509,1734695438892,-500.0,0.00022191,6]
[346083510,1734695438903,-500.0,0.00022191,6]
[346083511,1734695438913,-160.01298621,0.00022191,6]
[346083512,1734695438922,-339.50636313,0.00022191,6]
[346083513,1734695438931,-500.0,0.00022191,6]
[346083514,1734695438941,-500.0,0.00022191,6]
[346083515,1734695438950,-500.0,0.00022191,6]
[346083516,1734695438960,-500.0,0.00022191,6]
[346083517,1734695438977,-500.0,0.00022191,6]
[346083518,1734695438988,-500.0,0.00022191,6]
[346083519,1734695438998,-510.92496706,0.00022191,6]
[346083520,1734695439008,-500.0,0.00022191,6]
[346083521,1734695439018,-500.0,0.00022191,6]
[346083522,1734695439028,-500.0,0.00022191,6]
[346083523,1734695439038,-500.0,0.00022191,6]
[346083524,1734695439049,-500.0,0.00022191,6]
[346083525,1734695439060,-500.0,0.00022191,6]
[346083526,1734695439070,-274.07067218,0.00022191,6]
[346083527,1734695439080,-500.0,0.00022191,6]
[346083528,1734695439089,-500.0,0.00022191,6]
[346083529,1734695439100,-500.0,0.00022191,6]
[346083530,1734695439111,-500.0,0.00022191,6]
[346083531,1734695439122,-500.0,0.00022191,6]
[346083532,1734695439131,-500.0,0.00022191,6]
[346083533,1734695439142,-500.0,0.00022191,6]
[346083534,1734695439151,-500.0,0.00022191,6]
[346083535,1734695439162,-500.0,0.00022191,6]
[346083536,1734695439173,-500.0,0.00022191,6]
[346083537,1734695439184,-500.0,0.00022191,6]
[346083538,1734695439194,-230.39394443,0.00022191,6]
[346083539,1734695439207,-500.0,0.00022191,6]
[346083540,1734695439230,-505.64,0.00022191,6]
[346083541,1734695439239,-500.0,0.00022191,6]
[346083542,1734695439250,-500.0,0.00022191,6]
[346083543,1734695439260,-500.0,0.00022191,6]
[346083544,1734695439270,-500.0,0.00022191,6]
[346083545,1734695439280,-500.0,0.00022191,6]
[346083546,1734695439290,-500.0,0.00022191,6]
[346083547,1734695439301,-500.0,0.00022191,6]
[346083548,1734695439311,-792.84,0.00022191,6]
[346083549,1734695439321,-500.0,0.00022191,6]
[346083550,1734695439332,-500.0,0.00022191,6]
[346083551,1734695439342,-666.3,0.00022191,6]
[346083552,1734695439351,-569.1064158,0.00022191,6]
[346083553,1734695439361,-500.0,0.00022191,6]
[346083554,1734695439371,-500.0,0.00022191,6]
[346083555,1734695439381,-500.0,0.00022191,6]
[346083556,1734695439391,-500.0,0.00022191,6]
[346083557,1734695439400,-500.0,0.00022191,6]
[346083558,1734695439410,-500.0,0.00022191,6]
[346083559,1734695439420,-500.0,0.00022191,6]
[346083560,1734695439429,-500.0,0.00022191,6]
[346083561,1734695439438,-500.0,0.00022191,6]
[346083562,1734695439448,-546.14,0.00022191,6]
[346083563,1734695439458,-500.0,0.00022191,6]
[346083564,1734695439472,-1569.66,0.00022191,6]
[346083565,1734695439482,-500.0,0.00022191,6]
[346083566,1734695439493,-500.0,0.00022191,6]
[346083567,1734695439502,-500.0,0.00022191,6]
[346083568,1734695439512,-500.0,0.00022191,6]
[346083569,1734695439521,-500.0,0.00022191,6]
[346083570,1734695439530,-500.0,0.00022191,6]
[346083571,1734695439540,-1153.1,0.00022191,6]
[346083572,1734695439550,-500.0,0.00022191,6]
[346083573,1734695439559,-500.0,0.00022191,6]
[346083574,1734695439569,-500.0,0.00022191,6]
[346083575,1734695439578,-500.0,0.00022191,6]
[346083576,1734695439588,-825.59,0.00022191,6]
[346083577,1734695439598,-168.0,0.00022191,6]
[346083578,1734695439608,-500.0,0.00022191,6]
[346083579,1734695439618,-909.44,0.00022191,6]
[346083580,1734695439627,-661.6,0.00022191,6]
[346083581,1734695439637,-556.55837059,0.00022191,6]
[346083582,1734695439647,-500.0,0.00022191,6]
[346083583,1734695439657,-500.0,0.00022191,6]
[346083584,1734695439667,-500.0,0.00022191,6]
[346083585,1734695439676,-500.0,0.00022191,6]
[346083586,1734695439685,-500.0,0.00022191,6]
[346083587,1734695439695,-1058.73,0.00022191,6]
[346083588,1734695439704,-500.0,0.00022191,6]
[346083589,1734695439715,-500.0,0.00022191,6]
[346083590,1734695439725,-742.68,0.00022191,6]
[346083591,1734695439734,-500.0,0.00022191,6]
[346083593,1734695439744,-598.99,0.00022191,6]
[346083595,1734695439754,-500.0,0.00022191,6]
[346083597,1734695439764,-500.0,0.00022191,6]
[346083598,1734695439773,-500.0,0.00022191,6]
[346083599,1734695439783,-500.0,0.00022191,6]
[346083600,1734695439794,-711.99,0.00022191,6]
[346083601,1734695439804,-500.0,0.00022191,6]
[346083602,1734695439814,-500.0,0.00022191,6]
[346083603,1734695439823,-500.0,0.00022191,6]
[346083604,1734695439833,-500.0,0.00022191,6]
[346083605,1734695439842,-500.0,0.00022191,6]
[346083606,1734695439852,-1097.79,0.00022191,6]
[346083607,1734695439862,-674.85,0.00022191,6]
[346083608,1734695439872,-739.83,0.00022191,6]
[346083609,1734695439881,-500.0,0.00022191,6]
[346083610,1734695439891,-500.0,0.00022191,6]
[346083611,1734695439900,-500.0,0.00022191,6]
[346083612,1734695439910,-1008.24,0.00022191,6]
[346083613,1734695439919,-500.0,0.00022191,6]
[346083614,1734695439929,-500.0,0.00022191,6]
[346083615,1734695439938,-500.0,0.00022191,6]
[346083616,1734695439948,-500.0,0.00022191,6]
[346083617,1734695439957,-500.0,0.00022191,6]
[346083618,1734695439968,-500.0,0.00022191,6]
[346083619,1734695439977,-500.0,0.00022191,6]
[346083620,1734695439986,-85.27167241,0.00022191,6]
[346083640,1734695440560,-414.72832759,0.00022191,6]
[346083642,1734695440570,-67.68167241,0.00022191,6]
[346083644,1734695440582,-432.31832759,0.00022191,6]
[346083645,1734695440592,-1582.09,0.00022191,6]
[346083646,1734695440602,-954.11,0.00022191,6]
[346083647,1734695440611,-500.0,0.00022191,6]
[346083648,1734695440622,-1591.5,0.00022191,6]
[346083649,1734695440631,-625.41,0.00022191,6]
[346083650,1734695440641,-500.0,0.00022191,6]
[346083651,1734695440651,-974.47,0.00022191,6]
[346083652,1734695440661,-891.65,0.00022191,6]
[346083653,1734695440671,-500.0,0.00022191,6]
[346083654,1734695440682,-761.25167241,0.00022191,6]
[346083655,1734695440695,-179.12832759,0.00022191,6]
[346083656,1734695440704,-500.0,0.00022191,6]